Cogmind - Beta 10.2 @@@ ROGUE MODE // 2021.01.03 @ 22:09:07 Player: CrossedViper Result: Self-destructed Performance ------------- Evolutions (3) 1500 Regions Visited (6) 1200 Robots Destroyed (23) 115 Value Destroyed (789) 789 Prototype IDs (5) 100 Alien Tech Used (0) 0 Bonus (360) 360 TOTAL SCORE: 4064 Bonus ------- Pacifist 270 High Alert Combat Kills 55 Follower Combat Kills 35 Cogmind --------- Core Integrity 673/700 Matter 3/300 Energy 100/100 System Corruption 0% Temperature Cool (0) Movement Core (150) Ox2 Location -7/Factory Parts ------- > --- POWER (2) -------- (None) > --- PROPULSION (3) --- Improved Flight Unit Cesium-ion Thruster > --- UTILITY (6) ------ Improved Light Armor Plating Hacking Suite > --- WEAPON (2) ------- Heavy EM Shotgun > --- INVENTORY (4) ---- Light Treads Medium Armor Plating Bomb Drone Bay Peak State ------------ > --- POWER ------------ Light Deuterium Engine > --- PROPULSION ------- Improved Flight Unit Cesium-ion Thruster > --- UTILITY ---------- Large Storage Unit Large Storage Unit Large Storage Unit Light Armor Plating Improved Light Armor Plating Hacking Suite > --- WEAPON ----------- Heavy EM Shotgun > --- INVENTORY -------- Light Ion Engine Light Nuclear Core Light Treads Armored Wheel Armored Wheel Improved Sensor Array Medium Armor Plating Bomb Drone Bay Heavy EM Shotgun Heavy EM Shotgun Mining Laser Plasma Flamer [Rating: 27] Favorites ----------- Power Ion Engine Engine Ion Engine Propulsion Light Treads Treads Light Treads Leg Aluminum Leg Wheel Armored Wheel Flight Unit Improved Flight Unit Utility Large Storage Unit Device Long-range Tractor Beam Storage Large Storage Unit Hackware Hacking Suite Protection Improved Light Armor Plating Weapon Assault Rifle Energy Gun Medium Laser Ballistic Gun Assault Rifle Launcher Rocket Launcher Special Weapon Plasma Flamer Build | -11 -10 -10 -10 -9 -8 -7 ------- Run | Scr Mat Min Exi Min Mat Fac Slots Evolved 6 | . . . . . 4 2 Power 1 | . . . . . . 1 Propulsion 1 | . . . . . 1 . Utility 4 | . . . . . 3 1 Weapon . | . . . . . . . Parts Attached 25 | . 6 . . . 16 3 Power 1 | . . . . . 1 . Engine 1 | . . . . . 1 . Core . | . . . . . . . Reactor . | . . . . . . . Propulsion 8 | . 3 . . . 3 2 Treads 4 | . 2 . . . 2 . Leg . | . . . . . . . Wheel 2 | . 1 . . . 1 . Hover . | . . . . . . . Flight 2 | . . . . . . 2 Utility 9 | . 3 . . . 5 1 Device 2 | . 1 . . . 1 . Storage 3 | . 2 . . . 1 . Processor . | . . . . . . . Hackware 1 | . . . . . . 1 Protection 3 | . . . . . 3 . Artifact . | . . . . . . . Weapon 7 | . . . . . 7 . Energy Gun 2 | . . . . . 2 . Energy Cannon . | . . . . . . . Ballistic Gun 2 | . . . . . 2 . Ballistic Cannon . | . . . . . . . Launcher 2 | . . . . . 2 . Special Weapon 1 | . . . . . 1 . Impact Weapon . | . . . . . . . Slashing Weapon . | . . . . . . . Piercing Weapon . | . . . . . . . Special Melee Weapon . | . . . . . . . Unidentified Prototypes 2 | . . . . . 1 1 Parts Lost 7 | . . . . . 7 . Power 1 | . . . . . 1 . Propulsion 1 | . . . . . 1 . Utility 1 | . . . . . 1 . Weapon 4 | . . . . . 4 . Highest Loss Streak 4 | . . . . . 4 . Average Slot Usage (%) 92 | . 98 100 100 100 84 39 Engine 11 | . 14 14 14 14 8 . Treads 12 | . 13 14 14 14 11 . Wheel 11 | . 11 14 14 14 9 . Flight 1 | . . . . . . 15 Storage 24 | . 22 28 28 28 23 1 Protection 3 | . . . . . 13 7 Energy Gun 11 | . 14 14 14 14 3 7 Ballistic Gun 11 | . 14 14 14 14 7 . Naked Turns . | . . . . . . . Heaviest Build 67 | 13 41 41 41 41 67 12 Greatest Support 40 | 20 40 12 12 12 20 12 Greatest Overweight (x) 5 | . 3 3 3 3 5 2 Average Overweight (x) 2 | . 2 3 3 3 4 1 Largest Inventory Capacity 22 | . 16 16 16 16 22 22 Average Capacity 15 | . 12 16 16 16 19 4 Most Carried 19 | . 7 11 14 16 19 19 Average Carried 11 | . 6 9 13 15 15 4 Final Capacity 22 | 6 16 16 16 16 22 4 Final Carried 19 | 6 7 11 14 16 19 4 Class Distribution -------------------- 53% | Mutant 36% | Commander-Mutant 10% | Hauler-Mutant Dominant Class ---------------- Mutant | -10/Materials Mutant | -10/Mines Commander-Mutant | -10/Exiles Mutant | -9/Mines Hauler-Mutant | -8/Materials Mutant | -7/Factory Resources | -11 -10 -10 -10 -9 -8 -7 ----------- Run | Scr Mat Min Exi Min Mat Fac Matter Collected 477 | 200 . 54 . 15 208 . Remotely 56 | . . . . . 56 . Salvage Created 603 | . . . . . 603 . Parts 43 | . . . . . 43 . Haulers Intercepted . | . . . . . . . Recyclers Shooed . | . . . . . . . Parts Field Recycled . | . . . . . . . Retrieved Matter . | . . . . . . . Parts Self-Destructed . | . . . . . . . Prevented . | . . . . . . . Kills | -11 -10 -10 -10 -9 -8 -7 ------- Run | Scr Mat Min Exi Min Mat Fac Combat Hostiles Destroyed 19 | . . . . . 19 . Guns 6 | . . . . . 6 . Cannons 3 | . . . . . 3 . AOE 8 | . . . . . 8 . Classes Destroyed 10 | . . . . . 10 . Worker 1 | . . . . . 1 . Tunneler 1 | . . . . . 1 . Operator 1 | . . . . . 1 . Watcher 1 | . . . . . 1 . Swarmer 4 | . . . . . 4 . Grunt 6 | . . . . . 6 . Brawler 1 | . . . . . 1 . Duelist 1 | . . . . . 1 . Sentry 6 | . . . . . 6 . Hunter 1 | . . . . . 1 . Best Kill Streak 7 | . . . . . 7 . Combat Bots Only 5 | . . . . . 5 . Max Kills in Single Turn 2 | . . . . . 2 . Gunslinging . | . . . . . . . Exploded 2 | . . . . . 2 . Melee . | . . . . . . . Uniques/NPCs Destroyed . | . . . . . . . Combat | -11 -10 -10 -10 -9 -8 -7 -------- Run | Scr Mat Min Exi Min Mat Fac Damage Taken 1416 | . . . . 42 1347 27 Core 266 | . . . . . 239 27 Absorbed by Shields . | . . . . . . . Core Remaining (%) 85 | 100 . . . 100 56 . Volleys Fired 75 | . 2 1 . . 72 . Largest 2 | . 2 2 . . 2 . Hottest 123 | . 70 70 . . 123 . Shots Fired 132 | . 4 2 . . 126 . Gun 103 | . 4 2 . . 97 . Cannon . | . . . . . . . Launcher 13 | . . . . . 13 . Special 16 | . . . . . 16 . Kinetic 72 | . 2 1 . . 69 . Thermal 41 | . 2 1 . . 38 . Explosive 13 | . . . . . 13 . Electromagnetic 6 | . . . . . 6 . Robot Hit Streak 16 | . 2 . . . 16 . Robot Miss Streak 4 | . 1 2 . . 4 . Penetration Max . | . . . . . . . Secondary Targets 1 | . . . . . 1 . Max Gunslinging Chain 1 | . . . . . 1 . Shots Hit Robots 91 | . 3 . . . 88 . Core Hits 43 | . . 1 . . 42 . Critical Hits 2 | . . . . . 2 . Critical Kills . | . . . . . . . Critical Parts Destroyed 2 | . . . . . 2 . Melee Attacks . | . . . . . . . Impact . | . . . . . . . Slashing . | . . . . . . . Piercing . | . . . . . . . Sneak Attacks . | . . . . . . . Combat Hostiles . | . . . . . . . Follow-up Attacks . | . . . . . . . Damage Inflicted 2228 | . 33 11 . . 2184 . Guns 916 | . 33 11 . . 872 . Cannons . | . . . . . . . Explosions 1141 | . . . . . 1141 . Melee . | . . . . . . . Ramming . | . . . . . . . Kinetic 589 | . 21 11 . . 557 . Thermal 411 | . 12 . . . 399 . Explosive 1104 | . . . . . 1104 . Electromagnetic 124 | . . . . . 124 . Impact . | . . . . . . . Slashing . | . . . . . . . Piercing . | . . . . . . . Highest Corruption . | . . . . . . . Average Corruption . | . . . . . . . Corruption Purged . | . . . . . . . Overload Shots . | . . . . . . . Overflow Damage 23 | . . . . . 23 . Projectiles 6 | . . . . . 6 . Explosions 17 | . . . . . 17 . Melee . | . . . . . . . Knockbacks . | . . . . . . . Impact . | . . . . . . . Kinetic . | . . . . . . . Secondary . | . . . . . . . Self-Inflicted Damage 134 | . . . . . 134 . Shots 5 | . . . . . 5 . Rammed . | . . . . . . . Targets Rammed . | . . . . . . . Kicked . | . . . . . . . Crushed . | . . . . . . . Highest Temperature 303 | . 18 9 . . 303 . Average Temperature 69 | . 10 6 . . 72 . Received Heat Transfer 459 | . . . . . 459 . Siege Activations . | . . . . . . . Robots Corrupted . | . . . . . . . Combat Hostiles . | . . . . . . . Parts Fried . | . . . . . . . Impact Corruptions . | . . . . . . . Robots Melted 2 | . . . . . 2 . Combat Hostiles 2 | . . . . . 2 . Parts Melted 3 | . . . . . 3 . Heat Transferred 1682 | . 37 . . . 1645 . Parts Sabotaged . | . . . . . . . Parts Stolen . | . . . . . . . Parts Stripped . | . . . . . . . Power Chain Reactions 1 | . . . . . 1 . Missiles Intercepted . | . . . . . . . Alert | -11 -10 -10 -10 -9 -8 -7 ------- Run | Scr Mat Min Exi Min Mat Fac Peak Influence 493 | . 49 18 . . 493 191 Initial 191 | . . 18 . . . 191 Average 71 | . 29 9 . . 208 191 Maximum Alert Level 2 | . . . . . 2 . Low Security (%) 90 | . 100 100 . 100 55 100 Level 1 5 | . . . . . 27 . Level 2 3 | . . . . . 17 . Level 3 . | . . . . . . . Level 4 . | . . . . . . . Level 5 . | . . . . . . . High Security . | . . . . . . . Max Security . | . . . . . . . Squads Dispatched 3 | . . . . . 3 . Investigation . | . . . . . . . Extermination . | . . . . . . . Reinforcement 3 | . . . . . 3 . Assault . | . . . . . . . Garrison . | . . . . . . . Intercept . | . . . . . . . Construction Impeded 1 | . . . . . 1 . Haulers Reinforced . | . . . . . . . Stealth | -11 -10 -10 -10 -9 -8 -7 --------- Run | Scr Mat Min Exi Min Mat Fac Distress Signals 3 | . . . . . 3 . Communications Jammed . | . . . . . . . Distress Signals . | . . . . . . . Times Spotted 34 | . 3 . . 1 30 . Peak Tracking Total 7 | . 2 . . 1 7 . Tactical Retreats 3 | . . . . . 3 . Traps | -11 -10 -10 -10 -9 -8 -7 ------- Run | Scr Mat Min Exi Min Mat Fac Traps Triggered 1 | . . . . . . 1 Indirectly . | . . . . . . . Trap Hack Attempts . | . . . . . . . Triggered . | . . . . . . . Disarmed . | . . . . . . . Reprogrammed . | . . . . . . . Reused . | . . . . . . . Traps Extracted . | . . . . . . . Installed . | . . . . . . . Triggered . | . . . . . . . Machines | -11 -10 -10 -10 -9 -8 -7 ---------- Run | Scr Mat Min Exi Min Mat Fac Machines Disabled 1 | . . . . . 1 . Max in Single Turn 1 | . . . . . 1 . Machines Sabotaged . | . . . . . . . Garrisons Compromised . | . . . . . . . Overloaded Fab Kills . | . . . . . . . Fab Network Shutdowns . | . . . . . . . Hacking | -11 -10 -10 -10 -9 -8 -7 --------- Run | Scr Mat Min Exi Min Mat Fac Machines Accessed 7 | . 2 1 1 . 3 . Terminals 5 | . 2 . . . 3 . Fabricators . | . . . . . . . Repair Stations . | . . . . . . . Recycling Units . | . . . . . . . Scanalyzers . | . . . . . . . Garrison Access . | . . . . . . . Total Hacks 16 | . 7 1 1 . 7 . Successful 10 | . 5 1 1 . 3 . Failed 6 | . 2 . . . 4 . Catastrophic 1 | . . . . . 1 . Database Lockouts . | . . . . . . . Manual 12 | . 6 . . . 6 . Terminals 14 | . 7 . . . 7 . Fabricators . | . . . . . . . Repair Stations . | . . . . . . . Recycling Units . | . . . . . . . Scanalyzers . | . . . . . . . Garrison Access . | . . . . . . . Terminal Hacks 7 | . 3 1 1 . 2 . Record 1 | . . . 1 . . . Robot Analysis 2 | . 2 . . . . . Prototype ID Bank 1 | . . . . . 1 . Open Door 1 | . . 1 . . . . Branch Access Points 1 | . . . . . 1 . Terminal Index 1 | . 1 . . . . . Fabricator Hacks . | . . . . . . . Repair Station Hacks . | . . . . . . . Recycling Unit Hacks . | . . . . . . . Scanalyzer . | . . . . . . . Garrison Access Hacks . | . . . . . . . Unauthorized Hacks 3 | . 2 . . . 1 . Terminals 3 | . 2 . . . 1 . Track 2 | . 1 . . . 1 . Assimilate 1 | . 1 . . . . . Fabricators . | . . . . . . . Repair Stations . | . . . . . . . Recycling Units . | . . . . . . . Scanalyzers . | . . . . . . . Garrison Access . | . . . . . . . Data Cores Recovered . | . . . . . . . Used . | . . . . . . . Hacking Detections 4 | . 2 . . . 2 . Full Trace Events 2 | . . . . . 2 . Feedback Events . | . . . . . . . Feedback Blocked . | . . . . . . . Robot Schematics Acquired . | . . . . . . . Robots Built . | . . . . . . . Matter . | . . . . . . . Time . | . . . . . . . Total Robot Build Rating . | . . . . . . . Part Schematics Acquired . | . . . . . . . Parts Built . | . . . . . . . Matter . | . . . . . . . Time . | . . . . . . . Total Part Build Rating . | . . . . . . . Parts Repaired . | . . . . . . . Time . | . . . . . . . Parts Recycled . | . . . . . . . Recycled Matter . | . . . . . . . Retrieved Matter . | . . . . . . . Retrieved Components . | . . . . . . . Parts Scanalyzed . | . . . . . . . Part Schematics Acquired . | . . . . . . . Parts Damaged . | . . . . . . . Bothacking | -11 -10 -10 -10 -9 -8 -7 ------------ Run | Scr Mat Min Exi Min Mat Fac Used RIF Installer . | . . . . . . . Robots Hacked . | . . . . . . . Non-combat . | . . . . . . . Combat . | . . . . . . . Robot Hacks Applied . | . . . . . . . Relay Couplers Released . | . . . . . . . Robots Rewired . | . . . . . . . Allies Hacked . | . . . . . . . Hacks Repelled . | . . . . . . . Allies | -11 -10 -10 -10 -9 -8 -7 -------- Run | Scr Mat Min Exi Min Mat Fac Total Allies 5 | . 1 4 . . . . Largest Group 4 | . 1 4 4 4 3 . Highest-Rated Group 50 | . 10 50 50 50 42 . Highest-Rated Ally 31 | . 10 31 16 16 16 . Total Orders . | . . . . . . . Ally Attacks 19 | . . . . . 19 . Total Damage 245 | . . . . . 245 . Kills 1 | . . . . . 1 . Allies Corrupted . | . . . . . . . Allies Melted . | . . . . . . . Intel | -11 -10 -10 -10 -9 -8 -7 ------- Run | Scr Mat Min Exi Min Mat Fac Robot Analysis Total 2 | . 2 . . . . . Derelict Logs Recovered 2 | . . 2 . . . . Drone Launches . | . . . . . . . Drone Recoveries . | . . . . . . . Exploration | -11 -10 -10 -10 -9 -8 -7 ------------- Run | Scr Mat Min Exi Min Mat Fac Turns Passed 2685 | . 243 760 442 522 496 222 Spaces Moved 1841 | 1 189 620 364 430 185 52 Core 35 | . . . . . . 35 Treads 14 | . 8 . . . 6 . Legs 26 | 1 25 . . . . . Wheels 1749 | . 156 620 364 430 179 . Hover . | . . . . . . . Flight 17 | . . . . . . 17 Fastest Speed 34 | 120 100 120 120 120 120 34 Average Speed 121 | 120 118 120 120 120 136 112 Slowest Speed 220 | 120 160 120 120 120 220 150 Overloaded Moves . | . . . . . . . Propulsion Burnouts . | . . . . . . . Robots Hopped . | . . . . . . . Cave-ins Triggered . | . . . . . . . Exploration Rate (%) 49 | 2 39 98 85 90 29 2 Regions Visited 6 Branch Regions 3 Pre-discovered Areas 1 | . . 1 . . . . Known Exits Taken . | . . . . . . . Unknown Exits Taken 6 | 1 1 1 1 1 1 . Scrap Searched 4 | . . 2 . 2 . . Spaces Dug . | . . . . . . . Terrain Destroyed 100 | . . . . . 100 . Melee . | . . . . . . . Projectile . | . . . . . . . AOE 100 | . . . . . 100 . Terrain Rammed . | . . . . . . . Walls Destroyed . | . . . . . . . Machines Disabled . | . . . . . . . Actions | -11 -10 -10 -10 -9 -8 -7 --------- Run | Scr Mat Min Exi Min Mat Fac Total 2158 | . 206 634 369 436 292 221 Wait 180 | . . 11 3 5 6 155 Move 1835 | . 188 619 363 429 184 52 Hop . | . . . . . . . Pick Up 22 | . 4 3 3 2 10 . Fast Attach 7 | . 2 . . . 5 . Attach 13 | . 2 . . . 8 3 Detach 2 | . 1 . . . 1 . Swap 5 | . 2 . . . 3 . Drop 19 | . 5 . . . 3 11 Fire 75 | . 2 1 . . 72 . Melee . | . . . . . . . Ram . | . . . . . . . Kick . | . . . . . . . Crush . | . . . . . . . Escape Stasis . | . . . . . . . Rewire . | . . . . . . . Trap . | . . . . . . . Miscellaneous . | . . . . . . . Route ------- -11/Scrapyard -10/Materials -10/Mines (discovered 3 exits: *Mat x2 / *Exi) -10/Exiles -9/Mines (discovered 2 exits: *Mat x2) -8/Materials -7/Factory History --------- Turn | Location | Event 1 | -11/Scrapyard | Discovered new exit (range 0) 1 | -11/Scrapyard | Entered Materials 177 | -10/Materials | Discovered new exit (range 16) 244 | -10/Materials | Entered Mines 244 | -10/Mines | Accompanied by 1 ally 247 | -10/Mines | Received a Mining Laser from a helpful Derelict 270 | -10/Mines | Met a Derelict bent on vengeance 275 | -10/Mines | Discovered new exit (range 6) 306 | -10/Mines | Build established: Mutant 389 | -10/Mines | Identified exit to Materials 438 | -10/Mines | Found the Drone Emporium 442 | -10/Mines | Found Prototype Device 686 | -10/Mines | Assisted by bots powering up and referring to "LRC-V3" 848 | -10/Mines | A weapon hastily lodged in a ceiling crevice suddenly fell to the ground 990 | -10/Mines | Build established: Commander-Mutant 993 | -10/Mines | Deemed a non-threat by the Exiles lab entrance 993 | -10/Mines | Discovered new exit (range 5) 1004 | -10/Mines | Entered Exiles 1004 | -10/Exiles | Found Exiles lab abandoned 1004 | -10/Exiles | Accompanied by 4 allies 1431 | -10/Exiles | Discovered new exit (range 10) 1446 | -10/Exiles | Entered Mines 1446 | -9/Mines | Accompanied by 4 allies 1482 | -9/Mines | Received a Rocket Launcher from a helpful Derelict 1641 | -9/Mines | Assembled infested the area 1646 | -9/Mines | Assisted by a Guerilla fighting off Assembled 1659 | -9/Mines | Discovered new exit (range 11) 1685 | -9/Mines | Discovered new exit (range 6) 1959 | -9/Mines | Build established: Mutant 1968 | -9/Mines | Entered Materials 1968 | -8/Materials | Accompanied by 3 allies 1968 | -8/Materials | Evolved 4 slots: Propulsion x1, Utility x3 2363 | -8/Materials | Lost 4 parts (1p1n1u1w) 2432 | -8/Materials | Discovered new exit (range 16) 2464 | -8/Materials | Entered Factory 2464 | -7/Factory | Evolved 2 slots: Power x1, Utility x1 2686 | -7/Factory | Self-destructed Last Messages --------------- >>Access(Branch) No branch access points found. 02440_ Terminal unresponsive. 02458_ Acquired Cesium-ion Thruster. PARAMETERS=POWER_1,UTILITY_1 LOCATION=UNKNOWN GOAL=ESCAPE 02464_ Dropped Arm. Wheel. 02465_ Dropped Lgt. Treads. 02466_ Dropped Rigged Lgt. Fission Core. 02466_ Dropped Rigged Nuclear Core. 02467_ Dropped Rigged Rnf. Deuterium Engine. 02467_ Identified Imp. Flight Unit. 02470_ Dropped Lrg. Storage Unit. 02472_ Dropped Lgt. Armor Plating. 02473_ Dropped Lgt. Deuterium Engine. 02601_ Triggered Proton Bomb Trap. 02601_ A bubble of electromagnetic force engulfs the area. 02601_ Construction Platform disabled. 02601_ Door malfunctions. Map ----- +----------------------------------------------------+ | ?????????????????????? ????????????? | | ??????????????###+#### ????????????? | | ??????????????# ^ ?????????????? | | ??????????????# ??????????????? | | ??????????????# """ ????????????? | | ?????#######??# """ ????????????? | | ????? ??+ " ????????????? | | ?????? ?# ^ "F" #??????????? | | ??????? ?# """ #??????????? | | ??????? """" # ^ #??????????? | | ??????? """" # #??????????? | | ??????? """" / #??????????? | | ??????? """" # """ #??????????? | | ??????? """" # """ ????????????? | | ????????"""" ?# """ #??????????? | | ???????? ?# """ ##?????????? | | ??????? ??# "" ???????? | | ?????? ??# """" ???????? | | ??????#####???# """" ??????? | | ??######??????# ??????? | | # ! #??????# ??????? | | # #??????# ##########????????? | | # """ ######## #?????????????????? | | # """ # #?????????????????? | | # """ # #?????????????????? | | # # |[[ @ #?????????????????? | | # """ +!**! #?????????????????? | | # """ #**==! #?????????????????? | | # """ #**=!=###+####?????????????????? | | # # |!= # ???????????????????? | | # """ ####### """"""?????????????????? | | # """ #?????# """""" #???????????????? | | # """ #?????# """""" #???????????????? | | #? #?????# """""" #???????????????? | | ????####?????# ??????????????????? | | ?????????????# ""????????????????????? | | ?????????????# ???????????????????????? | | ??????????????????????????????????????? | | ??????????????????????????????????????? | | ??????????????????????????????????????? | | ??????????????????????????????????????? | | ??????????????????????????????????????? | | ??????????????????????????????????????? | | ??????????????????????????????????????? | | ??????????????????????????????????????? | | ??????????????????????????????????????? | | ??????????????????????????????????????? | | ??????????????????????????????????????? | | ??????????????????????????????????????? | | ??????????????????????????????????????? | +----------------------------------------------------+ Best States ------------- Heat Dissipation 34 Energy Generation 14 Energy Capacity 250 Matter Stores 300 Matter Capacity 300 Sight Range 16 Robot Scan Range 13 Terrain Scan Density 10 Armor Coverage 300 Evasion (%) 63 Recoil Reduction 2 Offensive Hacking 10 Item Schematics ----------------- None Robot Schematics ------------------ None Fabricated ------------ Nothing Alien Tech Used ----------------- None Achievements -------------- None Challenges ------------ None Game ------ Seed DisruptionSiegeMeganuke Manual? 0 Play Time 00:16:23 Cumulative 212.6 hours Start 2021.01.03 @ 21:42:51 End 2021.01.03 @ 22:09:07 Sessions 1 Manual Loads 0 Difficulty Rogue Special Mode None Game No. 195 Rogue 188 Adventurer 0 Explorer 7 Win Type - Total 5 Types 1/0/4/0/0/0/0/0/0 Lore% 68 Gallery% 90 Achievement% 69 Wizard Run 0 Options --------- ASCII 0 Keyboard 0 Movement Numpad Keybinds 0 Fullscreen 1 Font 18/X11 Map View 76x50 Tactical HUD 1 Map Filters NONE Filters NONE Steam 1 RUN: 485d906a-6cab-4f01-8bdc-591f8dd40b9c